fUSD/lending_fUSD_20250519
["ID","MTS","AMOUNT","RATE_DAILY","PERIOD"]
[361599664,1747632650220,-151.0,0.00013699,2]
[361599665,1747632650232,-151.0,0.00013699,2]
[361599666,1747632650243,-151.0,0.00013699,2]
[361599667,1747632650257,-151.0,0.00013699,2]
[361599668,1747632650270,-151.0,0.00013699,2]
[361599669,1747632650283,-203.35728366,0.00013699,2]
[361599670,1747632650298,-500.0,0.00013699,2]
[361599671,1747632650311,-500.0,0.00013699,2]
[361599672,1747632650323,-500.0,0.00013699,2]
[361599673,1747632650335,-500.0,0.00013699,2]
[361599674,1747632650347,-500.0,0.00013699,2]
[361599675,1747632650359,-416.80807469,0.00013699,2]
[361599676,1747632650370,-500.0,0.00013699,2]
[361599677,1747632650382,-500.0,0.00013699,2]
[361599678,1747632650395,-500.0,0.00013699,2]
[361599679,1747632650407,-500.0,0.00013699,2]
[361599680,1747632650418,-500.0,0.00013699,2]
[361599681,1747632650429,-500.0,0.00013699,2]
[361599682,1747632650440,-500.0,0.00013699,2]
[361599683,1747632650451,-500.0,0.00013699,2]
[361599684,1747632650461,-500.0,0.00013699,2]
[361599685,1747632650471,-500.0,0.00013699,2]
[361599686,1747632650481,-500.0,0.00013699,2]
[361599687,1747632650491,-500.0,0.00013699,2]
[361599688,1747632650502,-201.44475592,0.00013699,2]
[361599689,1747632650513,-500.0,0.00013699,2]
[361599690,1747632650523,-500.0,0.00013699,2]
[361599691,1747632650533,-500.0,0.00013699,2]
[361599692,1747632650544,-500.0,0.00013699,2]
[361599693,1747632650554,-500.0,0.00013699,2]
[361599694,1747632650564,-500.0,0.00013699,2]
[361599695,1747632650574,-500.0,0.00013699,2]
[361599696,1747632650584,-500.0,0.00013699,2]
[361599697,1747632650594,-500.0,0.00013699,2]
[361599698,1747632650604,-500.0,0.00013699,2]
[361599699,1747632650614,-500.0,0.00013699,2]
[361599700,1747632650637,-500.0,0.00013699,2]
[361599701,1747632650647,-500.0,0.00013699,2]
[361599702,1747632650656,-500.0,0.00013699,2]
[361599703,1747632650666,-500.0,0.00013699,2]
[361599704,1747632650675,-500.0,0.00013699,2]
[361599705,1747632650684,-500.0,0.00013699,2]
[361599706,1747632650693,-500.0,0.00013699,2]
[361599707,1747632650703,-500.0,0.00013699,2]
[361599708,1747632650712,-500.0,0.00013699,2]
[361599709,1747632650721,-500.0,0.00013699,2]
[361599710,1747632650731,-500.0,0.00013699,2]
[361599711,1747632650740,-600.0,0.00013699,2]
[361599712,1747632650750,-500.0,0.00013699,2]
[361599713,1747632650759,-500.0,0.00013699,2]
[361599714,1747632650769,-500.0,0.00013699,2]
[361599715,1747632650779,-500.0,0.00013699,2]
[361599716,1747632650788,-500.0,0.00013699,2]
[361599717,1747632650798,-151.0,0.00013699,2]
[361599718,1747632650808,-151.0,0.00013699,2]
[361599719,1747632650817,-151.0,0.00013699,2]
[361599720,1747632650827,-502.768606,0.00013699,2]
[361599721,1747632650836,-151.0,0.00013699,2]
[361599722,1747632650846,-502.768606,0.00013699,2]
[361599723,1747632650855,-151.0,0.00013699,2]
[361599724,1747632650865,-151.0,0.00013699,2]
[361599725,1747632650883,-1489.92,0.000137,2]
[361599726,1747632650892,-169.26542732,0.00013708,2]
[361599727,1747632650902,-1000.0,0.00013708,2]
[361599728,1747632650911,-167.44296889,0.00013719,2]
[361599729,1747632650921,-151.27066866,0.00013727,2]
[361599730,1747632650931,-1810.6593466,0.00013732,2]
[361599731,1747632650941,-832.87,0.00013744,2]
[361599732,1747632650951,-228.2020442,0.0001375,2]
[361599733,1747632650963,-1810.6593466,0.00013766,2]
[361599734,1747632650973,-151.27066866,0.00013771,2]
[361599735,1747632650983,-167.44296889,0.0001378,2]
[361599736,1747632650995,-1128.13176812,0.00013786,2]
[361599737,1747632651010,-362.14667402,0.0001379,2]
[361599738,1747632651022,-200.0,0.00013792,2]
[361599739,1747632651038,-351.26165927,0.00013794,2]
[361599740,1747632651050,-1810.6593466,0.00013799,2]
[361599741,1747632651061,-193.0,0.000138,3]
[361599742,1747632651073,-193.0,0.000138,3]
[361599743,1747632651084,-3527.71254268,0.000138,2]
[361599744,1747632651095,-1193.0,0.000138,2]
[361599745,1747632651107,-500.0,0.00013807,2]
[361599746,1747632651132,-500.0,0.00013807,2]
[361599747,1747632651146,-500.0,0.00013807,2]
[361599748,1747632651158,-500.0,0.00013807,2]
[361599749,1747632651170,-500.0,0.00013807,2]
[361599750,1747632651181,-500.0,0.00013807,2]
[361599751,1747632651192,-151.0,0.00013807,2]
[361599752,1747632651202,-151.0,0.00013807,2]
[361599753,1747632651213,-151.0,0.00013807,2]
[361599754,1747632651227,-151.0,0.00013807,2]
[361599755,1747632651239,-152.916906,0.00013807,2]
[361599756,1747632651250,-153.309868,0.00013807,2]
[361599757,1747632651267,-685.86,0.00013807,2]
[361599758,1747632651279,-685.86,0.00013807,2]
[361599759,1747632651291,-685.86,0.00013807,2]
[361599760,1747632651303,-685.86,0.00013807,2]
[361599761,1747632651315,-685.86,0.00013807,2]
[361599762,1747632651331,-685.86,0.00013807,2]
[361599763,1747632651343,-151.0,0.00013807,2]
[361599764,1747632651355,-304.165739,0.00013807,2]
[361599765,1747632651375,-304.165739,0.00013807,2]
[361599766,1747632651393,-151.0,0.00013807,2]
[361599767,1747632651405,-151.0,0.00013807,2]
[361599768,1747632651417,-227.355019,0.00013807,2]
[361599769,1747632651523,-3801.569616,0.00013807,2]
[361599770,1747632651546,-3801.569616,0.00013807,2]
[361599771,1747632651558,-1000.0,0.00013807,2]
[361599772,1747632651569,-1000.0,0.00013807,2]
[361599773,1747632651581,-1021.51322662,0.00013807,2]
[361599774,1747632651593,-259.269984,0.00013807,2]
[361599775,1747632651604,-500.0,0.00013807,2]
[361599776,1747632651619,-500.0,0.00013807,2]
[361599777,1747632651642,-500.0,0.00013807,2]
[361599778,1747632651656,-500.0,0.00013807,2]
[361599779,1747632651672,-500.0,0.00013807,2]
[361599780,1747632651684,-500.0,0.00013807,2]
[361599781,1747632651695,-500.0,0.00013807,2]
[361599782,1747632651706,-500.0,0.00013807,2]
[361599783,1747632651718,-151.0,0.00013807,2]
[361599784,1747632651729,-345.74,0.00013807,2]
[361599785,1747632651741,-211.656872,0.00013807,2]
[361599786,1747632651760,-211.656872,0.00013807,2]
[361599787,1747632651773,-151.0,0.00013807,2]
[361599788,1747632651785,-601.840338,0.00013807,2]
[361599789,1747632651797,-601.840338,0.00013807,2]
[361599790,1747632651809,-500.0,0.00013807,2]
[361599791,1747632651820,-500.0,0.00013807,2]
[361599792,1747632651831,-322.76597191,0.00013807,2]
[361599793,1747632651842,-598.45498487,0.00013807,2]
[361599794,1747632651852,-151.0,0.00013807,2]
[361599795,1747632651866,-151.0,0.00013807,2]
[361599796,1747632651879,-151.0,0.00013807,2]
[361599797,1747632651891,-500.0,0.00013807,2]
[361599798,1747632651903,-500.0,0.00013807,2]
[361599799,1747632651914,-597.28,0.00013807,2]
[361599800,1747632651925,-418.68108008,0.00013807,2]
[361599801,1747632651935,-1215913.53300094,0.00013808,2]
[361599802,1747632651947,-996.0,0.00013808,2]
[361599803,1747632651959,-151.671724,0.00013808,2]
[361599804,1747632651971,-152.602475,0.00013808,2]
[361599805,1747632651984,-151.0,0.00013808,2]
[361599806,1747632651996,-154.31814,0.00013808,2]
[361599807,1747632652008,-151.0,0.00013808,2]
[361599808,1747632652022,-151.0,0.00013808,2]
[361599809,1747632652033,-1099.69493726,0.00013808,2]
[361599810,1747632652045,-151.0,0.00013808,2]
[361599811,1747632652056,-151.0,0.00013808,2]
[361599812,1747632652076,-151.0,0.00013808,2]
[361599813,1747632652088,-151.0,0.00013808,2]
[361599814,1747632652101,-151.0,0.00013808,2]
[361599815,1747632652113,-151.0,0.00013808,2]
[361599816,1747632652142,-151.0,0.00013808,2]
[361599817,1747632652154,-151.0,0.00013808,2]
[361599818,1747632652165,-151.0,0.00013808,2]
[361599819,1747632652182,-151.0,0.00013808,2]
[361599820,1747632652194,-151.0,0.00013808,2]
[361599821,1747632652205,-151.0,0.00013808,2]
[361599822,1747632652217,-151.0,0.00013808,2]
[361599823,1747632652229,-151.0,0.00013808,2]
[361599824,1747632652243,-151.0,0.00013808,2]
[361599825,1747632652257,-151.0,0.00013808,2]
[361599826,1747632652271,-151.0,0.00013808,2]
[361599827,1747632652286,-151.0,0.00013808,2]
[361599828,1747632652301,-198.0,0.00013808,2]
[361599829,1747632652314,-400.0,0.00013808,2]
[361599830,1747632652327,-237.46474102,0.00013808,2]
[361599831,1747632652339,-400.0,0.00013808,2]
[361599832,1747632652352,-928.00824,0.00013808,2]
[361599833,1747632652365,-151.0,0.00013808,2]
[361599834,1747632652377,-151.9259,0.00013808,2]
[361599835,1747632652393,-400.0,0.00013808,2]
[361599836,1747632652406,-400.0,0.00013808,2]
[361599837,1747632652419,-3250.887854,0.00013808,2]
[361599838,1747632652431,-151.0,0.00013808,2]
[361599839,1747632652444,-1034.372137,0.00013808,2]
[361599840,1747632652456,-280.921889,0.00013808,2]
[361599841,1747632652468,-151.0,0.00013808,2]
[361599842,1747632652480,-400.0,0.00013808,2]
[361599843,1747632652500,-400.0,0.00013808,2]
[361599844,1747632652513,-313.339043,0.00013808,2]
[361599845,1747632652525,-400.0,0.00013808,2]
[361599846,1747632652538,-400.0,0.00013808,2]
[361599847,1747632652550,-424.09,0.00013808,2]
[361599848,1747632652562,-400.0,0.00013808,2]
[361599849,1747632652575,-409.05,0.00013808,2]
[361599850,1747632652588,-400.0,0.00013808,2]
[361599851,1747632652611,-400.0,0.00013808,2]
[361599852,1747632652624,-839.56,0.00013808,2]
[361599853,1747632652636,-400.0,0.00013808,2]
[361599854,1747632652664,-400.0,0.00013808,2]
[361599855,1747632652680,-400.0,0.00013808,2]
[361599856,1747632652691,-400.0,0.00013808,2]
[361599857,1747632652702,-400.0,0.00013808,2]
[361599858,1747632652716,-400.0,0.00013808,2]
[361599859,1747632652728,-400.0,0.00013808,2]
[361599860,1747632652740,-400.0,0.00013808,2]
[361599861,1747632652753,-400.0,0.00013808,2]
[361599862,1747632652764,-400.0,0.00013808,2]
[361599863,1747632652776,-400.0,0.00013808,2]
[361599864,1747632652787,-400.0,0.00013808,2]
[361599865,1747632652798,-487.52,0.00013808,2]
[361599866,1747632652810,-400.0,0.00013808,2]
[361599867,1747632652823,-400.0,0.00013808,2]
[361599868,1747632652837,-400.0,0.00013808,2]
[361599869,1747632652848,-151.0,0.00013808,2]
[361599870,1747632652860,-505.38,0.00013808,2]
[361599871,1747632652872,-400.0,0.00013808,2]
[361599872,1747632652884,-400.0,0.00013808,2]
[361599873,1747632652896,-400.7,0.00013808,2]
[361599874,1747632652909,-400.0,0.00013808,2]
[361599875,1747632652929,-400.0,0.00013808,2]
[361599876,1747632652941,-575.26,0.00013808,2]
[361599877,1747632652952,-400.0,0.00013808,2]
[361599878,1747632652964,-151.0,0.00013808,2]
[361599879,1747632652976,-400.0,0.00013808,2]
[361599880,1747632652987,-400.0,0.00013808,2]
[361599881,1747632652999,-410.64344174,0.00013808,2]
[361599882,1747632653012,-151.0,0.00013808,2]
[361599883,1747632653031,-675.73,0.00013808,2]
[361599884,1747632653044,-400.0,0.00013808,2]
[361599885,1747632653056,-400.0,0.00013808,2]
[361599886,1747632653068,-400.0,0.00013808,2]
[361599887,1747632653081,-400.0,0.00013808,2]
[361599888,1747632653093,-151.0,0.00013808,2]
[361599889,1747632653105,-400.0,0.00013808,2]
[361599890,1747632653117,-400.0,0.00013808,2]
[361599891,1747632653127,-250.0,0.00013808,2]
[361599892,1747632653139,-400.0,0.00013808,2]
[361599893,1747632653151,-400.0,0.00013808,2]
[361599894,1747632653180,-400.0,0.00013808,2]
[361599895,1747632653192,-393.61779419,0.00013808,2]
[361599896,1747632653203,-400.0,0.00013808,2]
[361599897,1747632653217,-400.0,0.00013808,2]
[361599898,1747632653228,-400.0,0.00013808,2]
[361599899,1747632653242,-151.0,0.00013808,2]
[361599900,1747632653257,-400.0,0.00013808,2]
[361599901,1747632653271,-551.14,0.00013808,2]
[361599902,1747632653282,-400.0,0.00013808,2]
[361599903,1747632653293,-748.92,0.00013808,2]
[361599904,1747632653306,-400.0,0.00013808,2]
[361599905,1747632653318,-495.31384608,0.00013808,2]
[361599906,1747632653329,-400.0,0.00013808,2]
[361599907,1747632653350,-400.0,0.00013808,2]
[361599908,1747632653362,-400.0,0.00013808,2]
[361599909,1747632653374,-400.0,0.00013808,2]
[361599910,1747632653386,-151.0,0.00013808,2]
[361599911,1747632653397,-400.0,0.00013808,2]
[361599912,1747632653408,-400.0,0.00013808,2]
[361599913,1747632653420,-242.435503,0.00013808,2]
[361599914,1747632653432,-443.17284479,0.00013808,2]
[361599915,1747632653443,-400.0,0.00013808,2]
[361599916,1747632653458,-400.0,0.00013808,2]
[361599917,1747632653471,-242.435503,0.00013808,2]
[361599918,1747632653483,-400.0,0.00013808,2]
[361599919,1747632653495,-400.0,0.00013808,2]
[361599920,1747632653507,-400.0,0.00013808,2]
[361599921,1747632653519,-400.0,0.00013808,2]
[361599922,1747632653530,-154.633633,0.00013808,2]
[361599923,1747632653542,-400.0,0.00013808,2]
[361599924,1747632653765,-400.0,0.00013808,2]
[361599925,1747632653778,-151.0,0.00013808,2]
[361599926,1747632653790,-400.0,0.00013808,2]
[361599927,1747632653803,-400.0,0.00013808,2]
[361599928,1747632653814,-400.0,0.00013808,2]
[361599929,1747632653826,-498.51,0.00013808,2]
[361599930,1747632653838,-151.0,0.00013808,2]
[361599931,1747632653851,-236.009418,0.00013808,2]
[361599932,1747632653863,-305.74387172,0.00013808,2]
[361599933,1747632653882,-400.0,0.00013808,2]
[361599934,1747632653894,-415.60920284,0.00013808,2]
[361599935,1747632653905,-400.0,0.00013808,2]
[361599936,1747632653917,-151.739659,0.00013808,2]
[361599937,1747632653928,-2941.867,0.00013808,2]
[361599938,1747632653940,-172.749,0.00013808,2]
[361599939,1747632653951,-426.28,0.00013808,2]
[361599940,1747632653963,-400.0,0.00013808,2]
[361599941,1747632653974,-400.0,0.00013808,2]
[361599942,1747632653985,-400.0,0.00013808,2]
[361599943,1747632653997,-400.0,0.00013808,2]
[361599944,1747632654008,-380.30793683,0.00013808,2]
[361599945,1747632654021,-400.0,0.00013808,2]
[361599946,1747632654046,-412.53785075,0.00013808,2]
[361599947,1747632654057,-405.33609223,0.00013808,2]
[361599948,1747632654068,-152.633796,0.00013808,2]
[361599949,1747632654081,-400.0,0.00013808,2]
[361599950,1747632654092,-400.0,0.00013808,2]
[361599951,1747632654105,-400.0,0.00013808,2]
[361599952,1747632654117,-415.62422563,0.00013808,2]
[361599953,1747632654130,-400.0,0.00013808,2]
[361599954,1747632654141,-400.0,0.00013808,2]
[361599955,1747632654154,-591.28,0.00013808,2]
[361599956,1747632654165,-400.0,0.00013808,2]
[361599957,1747632654195,-400.0,0.00013808,2]
[361599958,1747632654207,-400.0,0.00013808,2]
[361599959,1747632654218,-400.0,0.00013808,2]
[361599960,1747632654230,-400.0,0.00013808,2]
[361599961,1747632654241,-400.0,0.00013808,2]
[361599962,1747632654252,-390.284631,0.00013808,2]
[361599963,1747632654270,-400.0,0.00013808,2]
[361599964,1747632654282,-420.08,0.00013808,2]
[361599965,1747632654301,-400.0,0.00013808,2]
[361599966,1747632654314,-390.284631,0.00013808,2]
[361599967,1747632654324,-400.0,0.00013808,2]
[361599968,1747632654335,-400.0,0.00013808,2]
[361599969,1747632654348,-400.0,0.00013808,2]
[361599970,1747632654359,-400.0,0.00013808,2]
[361599971,1747632654371,-400.0,0.00013808,2]
[361599972,1747632654383,-400.0,0.00013808,2]
[361599973,1747632654394,-604.27,0.00013808,2]
[361599974,1747632654405,-400.0,0.00013808,2]
[361599975,1747632654417,-400.0,0.00013808,2]
[361599976,1747632654429,-400.0,0.00013808,2]
[361599977,1747632654440,-400.0,0.00013808,2]
[361599978,1747632654452,-400.0,0.00013808,2]
[361599979,1747632654464,-400.0,0.00013808,2]
[361599980,1747632654475,-444.94,0.00013808,2]
[361599981,1747632654488,-813.9,0.00013808,2]
[361599982,1747632654500,-400.0,0.00013808,2]
[361599983,1747632654512,-151.0,0.00013808,2]
[361599984,1747632654524,-400.0,0.00013808,2]
[361599985,1747632654536,-400.0,0.00013808,2]
[361599986,1747632654547,-173.45506775,0.00013808,2]
[361599987,1747632654558,-400.0,0.00013808,2]
[361599988,1747632654570,-880.4,0.00013808,2]
[361599989,1747632654582,-851.63,0.00013808,2]
[361599990,1747632654593,-559.85,0.00013808,2]
[361599991,1747632654608,-400.0,0.00013808,2]
[361599992,1747632654619,-400.0,0.00013808,2]
[361599993,1747632654631,-560.64,0.00013808,2]
[361599994,1747632654643,-400.0,0.00013808,2]
[361599995,1747632654654,-1592.74,0.00013808,2]
[361599996,1747632654665,-280.25,0.00013808,2]
[361599997,1747632654689,-400.0,0.00013808,2]
[361599998,1747632654701,-400.0,0.00013808,2]
[361599999,1747632654714,-400.0,0.00013808,2]
[361600000,1747632654727,-400.0,0.00013808,2]
[361600001,1747632654738,-151.0,0.00013808,2]
[361600002,1747632654749,-400.0,0.00013808,2]
[361600003,1747632654761,-400.0,0.00013808,2]
[361600004,1747632654772,-426.0,0.00013808,2]
[361600005,1747632654784,-151.0,0.00013808,2]
[361600006,1747632654795,-761.54,0.00013808,2]
[361600007,1747632654807,-430.84,0.00013808,2]
[361600008,1747632654820,-498.76,0.00013808,2]
[361600009,1747632654832,-403.13578141,0.00013808,2]
[361600010,1747632654845,-677.22,0.00013808,2]
[361600011,1747632654857,-400.0,0.00013808,2]
[361600012,1747632654868,-921.53,0.00013808,2]
[361600013,1747632654880,-226.17749463,0.00013808,2]
[361600014,1747632654891,-406.61584979,0.00013808,2]
[361600015,1747632654903,-581.62,0.00013808,2]
[361600016,1747632654913,-151.0,0.00013808,2]
[361600017,1747632654925,-400.0,0.00013808,2]
[361600018,1747632654937,-400.0,0.00013808,2]
[361600019,1747632654948,-400.0,0.00013808,2]
[361600020,1747632654962,-400.0,0.00013808,2]
[361600021,1747632654974,-1008.34,0.00013808,2]
[361600022,1747632654985,-408.95,0.00013808,2]
[361600023,1747632654997,-238.929592,0.00013808,2]
[361600024,1747632655008,-238.929592,0.00013808,2]
[361600025,1747632655047,-400.0,0.00013808,2]
[361600026,1747632655058,-582.56,0.00013808,2]
[361600027,1747632655068,-400.0,0.00013808,2]
[361600028,1747632655081,-151.0,0.00013808,2]
[361600029,1747632655093,-238.929592,0.00013808,2]
[361600030,1747632655104,-238.929592,0.00013808,2]
[361600031,1747632655115,-400.0,0.00013808,2]
[361600032,1747632655128,-471.11,0.00013808,2]
[361600033,1747632655140,-400.0,0.00013808,2]
[361600034,1747632655151,-400.0,0.00013808,2]
[361600035,1747632655162,-400.0,0.00013808,2]
[361600036,1747632655181,-400.0,0.00013808,2]
[361600037,1747632655199,-400.0,0.00013808,2]
[361600038,1747632655210,-151.0,0.00013808,2]
[361600039,1747632655221,-151.0,0.00013808,2]
[361600040,1747632655236,-154.454992,0.00013808,2]
[361600041,1747632655247,-539.74,0.00013808,2]
[361600042,1747632655260,-450.0,0.00013808,2]
[361600043,1747632655273,-400.0,0.00013808,2]
[361600044,1747632655286,-414.65,0.00013808,2]
[361600045,1747632655299,-400.0,0.00013808,2]
[361600046,1747632655310,-400.0,0.00013808,2]
[361600047,1747632655323,-521.84,0.00013808,2]
[361600048,1747632655335,-1000.0,0.00013808,2]
[361600049,1747632655348,-400.0,0.00013808,2]
[361600050,1747632655359,-400.0,0.00013808,2]
[361600051,1747632655370,-788.67,0.00013808,2]
[361600052,1747632655383,-400.0,0.00013808,2]
[361600053,1747632655393,-400.0,0.00013808,2]
[361600054,1747632655405,-400.0,0.00013808,2]
[361600055,1747632655416,-446.19,0.00013808,2]
[361600056,1747632655427,-596.28,0.00013808,2]
[361600057,1747632655442,-400.0,0.00013808,2]
[361600058,1747632655455,-400.0,0.00013808,2]
[361600059,1747632655466,-728.96,0.00013808,2]
[361600060,1747632655478,-156.5767621,0.00013808,2]
[361600061,1747632655489,-496.85550349,0.00013808,2]
[361600062,1747632655500,-153.879376,0.00013808,2]
[361600063,1747632655512,-400.0,0.00013808,2]
[361600064,1747632655523,-400.0,0.00013808,2]
[361600065,1747632655536,-1153.19,0.00013808,2]
[361600066,1747632655547,-970.78,0.00013808,2]
[361600067,1747632655558,-661.25,0.00013808,2]
[361600068,1747632655570,-484.22,0.00013808,2]
[361600069,1747632655582,-396.50945981,0.00013808,2]
[361600070,1747632655594,-400.0,0.00013808,2]
[361600071,1747632655605,-314.95710586,0.00013808,2]
[361600072,1747632655618,-400.0,0.00013808,2]
[361600073,1747632655630,-591.68,0.00013808,2]
[361600074,1747632655643,-400.0,0.00013808,2]
[361600075,1747632655655,-632.49,0.00013808,2]
[361600076,1747632655666,-400.0,0.00013808,2]
[361600077,1747632655690,-550.87,0.00013808,2]
[361600078,1747632655702,-400.0,0.00013808,2]
[361600079,1747632655713,-400.0,0.00013808,2]
[361600080,1747632655725,-400.0,0.00013808,2]
[361600081,1747632655736,-478.13552802,0.00013808,2]
[361600082,1747632655959,-938.51,0.00013808,2]
[361600083,1747632655971,-400.0,0.00013808,2]
[361600084,1747632655983,-400.0,0.00013808,2]
[361600085,1747632655994,-1215.35,0.00013808,2]
[361600086,1747632656005,-400.0,0.00013808,2]
[361600087,1747632656017,-400.0,0.00013808,2]
[361600088,1747632656067,-400.0,0.00013808,2]
[361600089,1747632656078,-400.0,0.00013808,2]
[361600090,1747632656091,-1127.61,0.00013808,2]
[361600091,1747632656104,-509.23,0.00013808,2]
[361600092,1747632656115,-540.85,0.00013808,2]
[361600093,1747632656128,-521.68,0.00013808,2]
[361600094,1747632656143,-400.0,0.00013808,2]
[361600095,1747632656155,-443.08,0.00013808,2]
[361600096,1747632656169,-641.29,0.00013808,2]
[361600097,1747632656196,-406.87660617,0.00013808,2]
[361600098,1747632656207,-523.17,0.00013808,2]
[361600099,1747632656218,-404.61,0.00013808,2]
[361600100,1747632656231,-400.0,0.00013808,2]
[361600101,1747632656243,-400.0,0.00013808,2]
[361600102,1747632656256,-400.0,0.00013808,2]
[361600103,1747632656272,-400.0,0.00013808,2]
[361600104,1747632656285,-790.52,0.00013808,2]
[361600105,1747632656298,-410.65,0.00013808,2]
[361600106,1747632656311,-400.0,0.00013808,2]
[361600107,1747632656322,-400.0,0.00013808,2]
[361600108,1747632656334,-672.55,0.00013808,2]
[361600109,1747632656347,-782.99,0.00013808,2]
[361600110,1747632656360,-400.0,0.00013808,2]
[361600111,1747632656375,-400.0,0.00013808,2]
[361600112,1747632656387,-400.0,0.00013808,2]
[361600113,1747632656398,-441.4,0.00013808,2]
[361600114,1747632656410,-666.55,0.00013808,2]
[361600115,1747632656424,-400.0,0.00013808,2]
[361600116,1747632656443,-451.34,0.00013808,2]
[361600117,1747632656455,-402.84,0.00013808,2]
[361600118,1747632656467,-476.64346781,0.00013808,2]
[361600119,1747632656478,-505.17,0.00013808,2]
[361600120,1747632656489,-401.45,0.00013808,2]
[361600121,1747632656501,-151.0,0.00013808,2]
[361600122,1747632656513,-151.0,0.00013808,2]
[361600123,1747632656525,-151.0,0.00013808,2]
[361600124,1747632656538,-400.0,0.00013808,2]
[361600125,1747632656550,-400.0,0.00013808,2]
[361600126,1747632656562,-414.86,0.00013808,2]
[361600127,1747632656574,-437.31,0.00013808,2]
[361600128,1747632656586,-400.0,0.00013808,2]
[361600129,1747632656598,-400.0,0.00013808,2]
[361600130,1747632656610,-400.0,0.00013808,2]
[361600131,1747632656621,-410.63176689,0.00013808,2]
[361600132,1747632656633,-1358.06,0.00013808,2]
[361600133,1747632656644,-1066.18,0.00013808,2]
[361600134,1747632656656,-400.0,0.00013808,2]
[361600135,1747632656668,-400.0,0.00013808,2]
[361600136,1747632656692,-652.91,0.00013808,2]
[361600137,1747632656704,-400.0,0.00013808,2]
[361600138,1747632656716,-750.33,0.00013808,2]
[361600139,1747632656728,-400.0,0.00013808,2]
[361600140,1747632656740,-286.588705,0.00013808,2]
[361600141,1747632656752,-520.44,0.00013808,2]
[361600142,1747632656763,-400.0,0.00013808,2]
[361600143,1747632656775,-400.0,0.00013808,2]
[361600144,1747632656794,-642.5,0.00013808,2]
[361600145,1747632656807,-425.35,0.00013808,2]
[361600146,1747632656819,-645.19,0.00013808,2]
[361600147,1747632656831,-400.0,0.00013808,2]
[361600148,1747632656842,-533.61,0.00013808,2]
[361600149,1747632656854,-1015.81,0.00013808,2]
[361600150,1747632656865,-917.89,0.00013808,2]
[361600151,1747632656877,-201.8802588,0.00013808,2]
[361600152,1747632656889,-400.0,0.00013808,2]
[361600153,1747632656901,-400.0,0.00013808,2]
[361600154,1747632656913,-552.23,0.00013808,2]
[361600155,1747632656933,-400.0,0.00013808,2]
[361600156,1747632656945,-400.0,0.00013808,2]
[361600157,1747632656955,-151.0,0.00013808,2]
[361600158,1747632656967,-459.25,0.00013808,2]
[361600159,1747632656978,-151.51693,0.00013808,2]
[361600160,1747632656991,-400.0,0.00013808,2]
[361600161,1747632657002,-400.0,0.00013808,2]
[361600162,1747632657014,-400.0,0.00013808,2]
[361600163,1747632657026,-182.318101,0.00013808,2]